[Event "44th Chess Olympiad Women 2022"]
[Site "Chennai"]
[Date "2022.07.31"]
[Round "3.14"]
[White "Nguyen, Thu Giang"]
[Black "Hernandez Gil, Ineymig"]
[Result "1-0"]
[WhiteElo "2119"]
[BlackElo "2234"]
[Annotator "RC"]
[PlyCount "135"]
[EventDate "2022.??.??"]
[TimeControl "60"]

1. e4 {[%emt 0:00:04]} c6 {[%emt 0:01:18]} 2. d4 {[%emt 0:00:11]} d5 {[%emt 0:
00:00]} 3. Nc3 {[%emt 0:01:03]} dxe4 {[%emt 0:00:06]} 4. Nxe4 {[%emt 0:00:04]}
Bf5 {[%emt 0:00:07]} 5. Ng3 {[%emt 0:00:08]} Bg6 {[%emt 0:00:16]} 6. Nh3 {
[%emt 0:00:15]} Nd7 {[%emt 0:07:19]} 7. Bc4 {[%emt 0:06:06]} Ngf6 {[%emt 0:00:
00]} 8. Nf4 {[%emt 0:00:37]} Qc7 {[%emt 0:03:55]} 9. Qe2 {[%emt 0:08:12]} Nb6 {
[%emt 0:06:09]} 10. Bb3 {[%emt 0:01:05]} Nbd5 {[%emt 0:05:12]} 11. Nxg6 {
[%emt 0:01:02]} hxg6 {[%emt 0:00:37]} 12. c4 {[%emt 0:02:32]} Nb6 {[%emt 0:00:
00]} 13. Bg5 {[%emt 0:09:49]} O-O-O {[%emt 0:04:44]} 14. O-O-O {[%emt 0:02:00]}
e6 {[%emt 0:06:32]} 15. Kb1 {[%emt 0:01:13]} Be7 {[%emt 0:03:36]} 16. h3 {
[%emt 0:10:58]} Nh5 {[%emt 0:12:35]} 17. Bxe7 {[%emt 0:04:05]} Qxe7 {[%emt 0:
00:00]} 18. Ne4 {[%emt 0:00:38]} Nf6 {[%emt 0:03:40]} 19. Nc5 {[%emt 0:03:49]}
Rh4 {[%emt 0:04:11]} 20. Qe3 {[%emt 0:01:52]} Qd6 {[%emt 0:04:53]} 21. g4 {
[%emt 0:10:31]} Rhh8 {[%emt 0:05:25]} 22. f4 {[%emt 0:05:49]} Nbd7 {[%emt 0:00:
00]} 23. Nd3 {[%emt 0:01:37]} Rhf8 {[%emt 0:04:16]} 24. Ne5 {[%emt 0:03:15]}
Kb8 {[%emt 0:02:40]} 25. g5 {[%emt 0:01:43]} Nh5 {[%emt 0:03:46]} 26. Rhf1 {
[%emt 0:05:36]} Rde8 {[%emt 0:03:00]} 27. Rd2 {[%emt 0:00:51]} Qc7 {[%emt 0:00:
00]} 28. Rdf2 {[%emt 0:00:27]} Re7 {[%emt 0:02:23]} 29. Bc2 {[%emt 0:02:25]}
Nxe5 {[%emt 0:01:17]} 30. fxe5 {[%emt 0:00:12]} Rd8 {[%emt 0:00:16]} 31. Rd1 {
[%emt 0:00:24]} Red7 {[%emt 0:00:56]} 32. Rfd2 {[%emt 0:00:29]} Qb6 {[%emt 0:
00:00]} 33. Be4 {[%emt 0:02:48]} a6 {[%emt 0:01:16]} 34. Rd3 {[%emt 0:00:22]}
Ka8 {[%emt 0:00:35]} 35. c5 {[%emt 0:00:46]} Qc7 {[%emt 0:00:45]} 36. Rb3 {
[%emt 0:00:16]} Qc8 {[%emt 0:00:39]} 37. Rb6 {[%emt 0:01:29]} Rc7 {[%emt 0:00:
00]} 38. b4 {[%emt 0:02:48]} Ka7 {[%emt 0:00:42]} 39. Bd3 {[%emt 0:05:22]} Rdd7
{[%emt 0:00:35]} 40. Bc4 {[%emt 0:04:46]} Qd8 {[%emt 0:00:38]} 41. Rd3 {
[%emt 0:31:56]} Qc8 {[%emt 0:14:09]} 42. Ra3 {[%emt 0:00:00]} Ng3 {[%emt 0:00:
00]} 43. Qxg3 {[%emt 0:00:00]} Rxd4 {[%emt 0:00:08]} 44. Bxa6 {[%emt 0:00:00]}
bxa6 {[%emt 0:00:26]} 45. Raxa6+ {[%emt 0:00:00]} Qxa6 {[%emt 0:00:05]} 46.
Rxa6+ {[%emt 0:00:00]} Kxa6 {[%emt 0:00:03]} 47. Qa3+ {[%emt 0:00:00]} Kb7 {
[%emt 0:00:22]} 48. Qa5 {[%emt 0:00:00]} Rd5 {[%emt 0:02:26]} 49. Qb6+ {
[%emt 0:00:00]} Kc8 {[%emt 0:00:05]} 50. a4 {[%emt 0:00:00]} Rxe5 {[%emt 0:00:
00]} 51. a5 {[%emt 0:00:00]} Rd5 {[%emt 0:00:58]} 52. a6 {[%emt 0:00:00]} Rdd7
{[%emt 0:01:08]} 53. a7 {[%emt 0:00:00]} Rxa7 {[%emt 0:00:25]} 54. Qxc6+ {
[%emt 0:00:00]} Rdc7 {[%emt 0:01:54]} 55. Qd6 {[%emt 0:00:00]} Rd7 {[%emt 0:00:
00]} 56. Qf8+ {[%emt 0:02:42]} Rd8 {[%emt 0:00:19]} 57. Qxg7 {[%emt 0:00:20]}
Rb7 {[%emt 0:00:54]} 58. Qc3 {[%emt 0:00:17]} Kc7 {[%emt 0:00:33]} 59. Qe5+ {
[%emt 0:01:06]} Kc8 {[%emt 0:00:44]} 60. Qe4 {[%emt 0:00:16]} Rd5 {[%emt 0:00:
00]} 61. Ka2 {[%emt 0:01:28]} Rxg5 {[%emt 0:00:36]} 62. Qc6+ {[%emt 0:00:32]}
Kb8 {[%emt 0:00:42]} 63. b5 {[%emt 0:01:01]} Ra7+ {[%emt 0:00:35]} 64. Kb3 {
[%emt 0:00:40]} Rg3+ {[%emt 0:00:17]} 65. Kb4 {[%emt 0:00:06]} Raa3 {[%emt 0:
00:00]} 66. Qe8+ {[%emt 0:00:17]} Kb7 {[%emt 0:00:44]} 67. c6+ {[%emt 0:00:11]}
Ka7 {[%emt 0:00:32]} 68. Qd7+ {[%emt 0:00:08]} 1-0

[Event "44th Chess Olympiad Women 2022"]
[Site "Chennai"]
[Date "2022.07.31"]
[Round "3.14"]
[White "Ordaz Valdes, Lisandra Teresa"]
[Black "Ryjanova, Julia"]
[Result "1/2-1/2"]
[WhiteElo "2367"]
[BlackElo "2284"]
[Annotator "RC"]
[PlyCount "94"]
[EventDate "2022.??.??"]
[TimeControl "60"]

1. d4 {[%emt 0:00:02]} Nf6 {[%emt 0:00:06]} 2. c4 {[%emt 0:00:06]} e6 {[%emt 0:
00:00]} 3. Nc3 {[%emt 0:00:06]} Bb4 {[%emt 0:00:07]} 4. e3 {[%emt 0:00:10]} O-O
{[%emt 0:00:50]} 5. Bd2 {[%emt 0:00:22]} d5 {[%emt 0:12:32]} 6. Nf3 {[%emt 0:
00:00]} c6 {[%emt 0:02:08]} 7. Bd3 {[%emt 0:04:52]} Nbd7 {[%emt 0:00:58]} 8.
O-O {[%emt 0:00:41]} Qe7 {[%emt 0:05:03]} 9. a3 {[%emt 0:12:27]} Bd6 {[%emt 0:
00:00]} 10. Qc2 {[%emt 0:05:37]} dxc4 {[%emt 0:16:55]} 11. Bxc4 {[%emt 0:00:07]
} e5 {[%emt 0:00:23]} 12. h3 {[%emt 0:09:07]} h6 {[%emt 0:08:02]} 13. Nh4 {
[%emt 0:06:24]} Nb6 {[%emt 0:07:53]} 14. Ng6 {[%emt 0:15:35]} Qc7 {[%emt 0:00:
00]} 15. Ba2 {[%emt 0:00:05]} exd4 {[%emt 0:09:20]} 16. Ne4 {[%emt 0:09:03]}
Nxe4 {[%emt 0:02:40]} 17. Qxe4 {[%emt 0:00:31]} Rd8 {[%emt 0:00:20]} 18. exd4 {
[%emt 0:01:30]} Nd5 {[%emt 0:01:27]} 19. Ne5 {[%emt 0:02:40]} Be6 {[%emt 0:00:
00]} 20. Ng4 {[%emt 0:02:33]} Re8 {[%emt 0:04:27]} 21. Qf3 {[%emt 0:01:55]} Bf4
{[%emt 0:03:47]} 22. Rad1 {[%emt 0:08:30]} Bxd2 {[%emt 0:01:35]} 23. Rxd2 {
[%emt 0:00:02]} Bxg4 {[%emt 0:01:09]} 24. hxg4 {[%emt 0:03:08]} Rad8 {[%emt 0:
00:00]} 25. Rfd1 {[%emt 0:01:04]} Qe7 {[%emt 0:01:04]} 26. g3 {[%emt 0:01:36]}
Qe4 {[%emt 0:01:30]} 27. Kg2 {[%emt 0:01:16]} Qxf3+ {[%emt 0:02:37]} 28. Kxf3 {
[%emt 0:00:07]} Rd6 {[%emt 0:00:14]} 29. Bxd5 {[%emt 0:03:25]} Rxd5 {[%emt 0:
00:00]} 30. Re2 {[%emt 0:00:09]} Rxe2 {[%emt 0:02:55]} 31. Kxe2 {[%emt 0:00:02]
} Kf8 {[%emt 0:01:27]} 32. Ke3 {[%emt 0:02:16]} Ke7 {[%emt 0:01:59]} 33. Ke4 {
[%emt 0:00:46]} Rb5 {[%emt 0:02:22]} 34. b4 {[%emt 0:01:20]} a5 {[%emt 0:02:30]
} 35. Rb1 {[%emt 0:01:46]} Ke6 {[%emt 0:00:53]} 36. Kd3 {[%emt 0:01:21]} axb4 {
[%emt 0:01:17]} 37. axb4 {[%emt 0:00:45]} Kd6 {[%emt 0:00:44]} 38. Ke4 {
[%emt 0:00:56]} h5 {[%emt 0:01:11]} 39. gxh5 {[%emt 0:00:34]} Rxh5 {[%emt 0:00:
00]} 40. g4 {[%emt 0:01:58]} Rh6 {[%emt 0:01:33]} 41. Ra1 {[%emt 0:33:21]} Re6+
{[%emt 0:30:36]} 42. Kd3 {[%emt 0:00:00]} Rf6 {[%emt 0:00:00]} 43. Ke3 {
[%emt 0:00:00]} Kd5 {[%emt 0:00:00]} 44. Ra7 {[%emt 0:00:00]} Re6+ {[%emt 0:00:
00]} 45. Kd3 {[%emt 0:00:00]} Re4 {[%emt 0:00:00]} 46. Rxb7 {[%emt 0:00:00]}
Rxd4+ {[%emt 0:00:00]} 47. Ke3 {[%emt 0:00:00]} Rxg4 {[%emt 0:00:00]} 1/2-1/2

[Event "44th Chess Olympiad Women 2022"]
[Site "Chennai"]
[Date "2022.07.31"]
[Round "3.14"]
[White "Zhang, Jilin"]
[Black "Arribas Robaina, Maritza"]
[Result "1/2-1/2"]
[WhiteElo "2212"]
[BlackElo "2239"]
[Annotator "RC"]
[PlyCount "81"]
[EventDate "2022.??.??"]
[TimeControl "60"]

1. e4 {[%emt 0:00:02]} e6 {[%emt 0:00:05]} 2. d4 {[%emt 0:00:11]} d5 {[%emt 0:
00:00]} 3. Nc3 {[%emt 0:00:22]} Nf6 {[%emt 0:00:20]} 4. e5 {[%emt 0:01:29]}
Nfd7 {[%emt 0:00:10]} 5. f4 {[%emt 0:00:07]} c5 {[%emt 0:00:20]} 6. Nf3 {
[%emt 0:00:15]} Nc6 {[%emt 0:00:56]} 7. Be3 {[%emt 0:00:33]} Be7 {[%emt 0:00:
00]} 8. Qd2 {[%emt 0:03:18]} a6 {[%emt 0:00:13]} 9. dxc5 {[%emt 0:07:43]} Nxc5
{[%emt 0:01:48]} 10. Nd4 {[%emt 0:01:28]} Bd7 {[%emt 0:05:32]} 11. Bd3 {
[%emt 0:04:34]} O-O {[%emt 0:07:54]} 12. O-O {[%emt 0:03:17]} Nxd3 {[%emt 0:00:
00]} 13. cxd3 {[%emt 0:01:39]} f6 {[%emt 0:01:02]} 14. Nxc6 {[%emt 0:11:17]}
Bxc6 {[%emt 0:01:00]} 15. d4 {[%emt 0:00:38]} f5 {[%emt 0:08:21]} 16. Rf3 {
[%emt 0:10:01]} Rc8 {[%emt 0:03:51]} 17. Bf2 {[%emt 0:01:45]} Rf7 {[%emt 0:00:
00]} 18. Rc1 {[%emt 0:08:36]} Bf8 {[%emt 0:08:47]} 19. a3 {[%emt 0:01:55]} Rfc7
{[%emt 0:01:49]} 20. Na2 {[%emt 0:00:56]} Bb5 {[%emt 0:04:12]} 21. Rxc7 {
[%emt 0:01:18]} Rxc7 {[%emt 0:04:47]} 22. Rc3 {[%emt 0:00:08]} Be7 {[%emt 0:00:
00]} 23. Qc2 {[%emt 0:06:36]} Rc4 {[%emt 0:02:50]} 24. b3 {[%emt 0:02:17]} Rxc3
{[%emt 0:02:40]} 25. Qxc3 {[%emt 0:00:04]} Qe8 {[%emt 0:04:29]} 26. a4 {
[%emt 0:03:40]} Bc6 {[%emt 0:00:42]} 27. Nb4 {[%emt 0:03:07]} Bd7 {[%emt 0:00:
00]} 28. Nd3 {[%emt 0:00:50]} Qc8 {[%emt 0:01:36]} 29. Qxc8+ {[%emt 0:07:42]}
Bxc8 {[%emt 0:00:05]} 30. a5 {[%emt 0:01:45]} Bd7 {[%emt 0:08:37]} 31. b4 {
[%emt 0:10:16]} Kf7 {[%emt 0:01:44]} 32. Nc5 {[%emt 0:00:10]} Bc6 {[%emt 0:00:
00]} 33. Be1 {[%emt 0:01:12]} h6 {[%emt 0:05:05]} 34. g3 {[%emt 0:02:07]} g5 {
[%emt 0:03:10]} 35. Kg2 {[%emt 0:01:42]} Bxc5 {[%emt 0:02:41]} 36. bxc5 {
[%emt 0:00:14]} g4 {[%emt 0:00:19]} 37. Kf2 {[%emt 0:00:31]} Ke7 {[%emt 0:00:
00]} 38. Ke3 {[%emt 0:00:20]} Bb5 {[%emt 0:00:26]} 39. Kd2 {[%emt 0:00:22]} Kd7
{[%emt 0:00:07]} 40. Kc3 {[%emt 0:00:11]} Kc6 {[%emt 0:00:08]} 41. Kb4 {
[%emt 0:30:07]} 1/2-1/2

[Event "44th Chess Olympiad Women 2022"]
[Site "Chennai"]
[Date "2022.07.31"]
[Round "3.15"]
[White "Alboredo, Julia"]
[Black "Salimova, Nurgyul"]
[Result "0-1"]
[WhiteElo "2264"]
[BlackElo "2416"]
[Annotator "ChessBase"]
[PlyCount "79"]
[EventDate "2022.??.??"]
[TimeControl "60"]

1. e4 {[%emt 0:00:04]} c6 {[%emt 0:00:04]} 2. d4 {[%emt 0:00:08]} d5 {[%emt 0:
00:00]} 3. e5 {[%emt 0:00:14]} Bf5 {[%emt 0:00:12]} 4. h4 {[%emt 0:00:23]} h5 {
[%emt 0:00:17]} 5. Bd3 {[%emt 0:00:10]} Bxd3 {[%emt 0:00:13]} 6. Qxd3 {[%emt 0:
00:00]} Qa5+ {[%emt 0:00:41]} 7. b4 {[%emt 0:00:26]} Qa6 {[%emt 0:00:29]} 8.
Qb3 {[%emt 0:00:18]} e6 {[%emt 0:01:44]} 9. Nf3 {[%emt 0:00:16]} Ne7 {[%emt 0:
00:00]} 10. a4 {[%emt 0:00:09]} Nf5 {[%emt 0:03:14]} 11. Nbd2 {[%emt 0:18:12]}
Nd7 {[%emt 0:07:43]} 12. Bb2 {[%emt 0:09:00]} Qb6 {[%emt 0:22:40]} 13. Bc3 {
[%emt 0:02:54]} Be7 {[%emt 0:00:39]} 14. g3 {[%emt 0:12:05]} Qd8 {[%emt 0:00:
00]} 15. Nf1 {[%emt 0:02:42]} b6 {[%emt 0:01:13]} 16. Bd2 {[%emt 0:02:35]} c5 {
[%emt 0:00:57]} 17. c3 {[%emt 0:00:17]} O-O {[%emt 0:10:07]} 18. Ne3 {[%emt 0:
00:00]} Nxe3 {[%emt 0:05:29]} 19. Bxe3 {[%emt 0:00:16]} cxb4 {[%emt 0:01:00]}
20. cxb4 {[%emt 0:00:16]} a5 {[%emt 0:00:20]} 21. b5 {[%emt 0:05:31]} Bb4+ {
[%emt 0:01:20]} 22. Kf1 {[%emt 0:05:57]} Rc8 {[%emt 0:08:03]} 23. Ng5 {[%emt 0:
00:00]} g6 {[%emt 0:04:36]} 24. g4 {[%emt 0:09:33]} hxg4 {[%emt 0:00:47]} 25.
Qd1 {[%emt 0:00:19]} Bc3 {[%emt 0:04:47]} 26. Rc1 {[%emt 0:03:17]} Rc4 {
[%emt 0:01:20]} 27. Qd3 {[%emt 0:09:06]} Bxd4 {[%emt 0:05:10]} 28. Nxe6 {
[%emt 0:05:29]} Rxc1+ {[%emt 0:01:39]} 29. Bxc1 {[%emt 0:00:36]} Nc5 {[%emt 0:
00:00]} 30. Qxd4 {[%emt 0:01:17]} Nxe6 {[%emt 0:00:21]} 31. Qxg4 {[%emt 0:00:
00]} Qc7 {[%emt 0:02:26]} 32. Be3 {[%emt 0:03:16]} d4 {[%emt 0:01:09]} 33. Bh6
{[%emt 0:00:05]} Rc8 {[%emt 0:03:08]} 34. h5 {[%emt 0:00:08]} Qc4+ {[%emt 0:00:
00]} 35. Kg2 {[%emt 0:01:25]} Qd5+ {[%emt 0:00:28]} 36. Kg1 {[%emt 0:00:10]}
Qxe5 {[%emt 0:02:32]} 37. hxg6 {[%emt 0:00:09]} f5 {[%emt 0:00:33]} 38. Qh3 {
[%emt 0:00:59]} Qe1+ {[%emt 0:01:53]} 39. Kg2 {[%emt 0:00:08]} Qe4+ {[%emt 0:
00:00]} 40. Kg3 {[%emt 0:00:00]} 0-1

[Event "44th Chess Olympiad Women 2022"]
[Site "Chennai"]
[Date "2022.07.31"]
[Round "3.15"]
[White "Peycheva, Gergana"]
[Black "Librelato, Kathie Goulart"]
[Result "1-0"]
[WhiteElo "2295"]
[BlackElo "2255"]
[Annotator "RC"]
[PlyCount "93"]
[EventDate "2022.??.??"]
[TimeControl "60"]

1. d4 {[%emt 0:00:06]} d5 {[%emt 0:00:08]} 2. c4 {[%emt 0:00:58]} e6 {[%emt 0:
00:00]} 3. Nf3 {[%emt 0:02:44]} c6 {[%emt 0:00:07]} 4. e3 {[%emt 0:02:05]} Nf6
{[%emt 0:00:13]} 5. Qc2 {[%emt 0:02:45]} Nbd7 {[%emt 0:05:15]} 6. Nc3 {[%emt 0:
00:00]} Bd6 {[%emt 0:01:48]} 7. b3 {[%emt 0:01:44]} b6 {[%emt 0:11:22]} 8. Be2
{[%emt 0:06:01]} Bb7 {[%emt 0:00:12]} 9. O-O {[%emt 0:01:25]} O-O {[%emt 0:00:
00]} 10. Bb2 {[%emt 0:01:43]} Re8 {[%emt 0:00:21]} 11. Rad1 {[%emt 0:06:28]}
Qe7 {[%emt 0:01:17]} 12. e4 {[%emt 0:07:54]} Nxe4 {[%emt 0:13:21]} 13. Nxe4 {
[%emt 0:02:47]} dxe4 {[%emt 0:00:06]} 14. Qxe4 {[%emt 0:00:14]} Nf6 {[%emt 0:
00:00]} 15. Qc2 {[%emt 0:01:44]} Ba3 {[%emt 0:05:38]} 16. Ba1 {[%emt 0:10:11]}
Rad8 {[%emt 0:06:31]} 17. Ne5 {[%emt 0:04:42]} c5 {[%emt 0:05:19]} 18. Bf3 {
[%emt 0:05:11]} Bxf3 {[%emt 0:09:52]} 19. Nxf3 {[%emt 0:01:02]} Qc7 {[%emt 0:
00:00]} 20. d5 {[%emt 0:09:48]} exd5 {[%emt 0:10:08]} 21. Bxf6 {[%emt 0:04:05]}
gxf6 {[%emt 0:00:05]} 22. Rxd5 {[%emt 0:03:05]} Rxd5 {[%emt 0:04:16]} 23. cxd5
{[%emt 0:00:14]} b5 {[%emt 0:01:07]} 24. Qd3 {[%emt 0:04:05]} a6 {[%emt 0:00:
00]} 25. Rd1 {[%emt 0:03:42]} Qd6 {[%emt 0:04:55]} 26. h4 {[%emt 0:04:38]} Rc8
{[%emt 0:02:25]} 27. h5 {[%emt 0:02:38]} c4 {[%emt 0:01:41]} 28. Qf5 {[%emt 0:
00:00]} Re8 {[%emt 0:02:58]} 29. bxc4 {[%emt 0:02:00]} bxc4 {[%emt 0:00:06]}
30. Qg4+ {[%emt 0:01:01]} Kh8 {[%emt 0:00:43]} 31. Qxc4 {[%emt 0:00:37]} h6 {
[%emt 0:00:11]} 32. Qd3 {[%emt 0:03:47]} Bc5 {[%emt 0:00:33]} 33. Rc1 {[%emt 0:
00:00]} Rd8 {[%emt 0:00:34]} 34. Qd2 {[%emt 0:00:12]} Kg7 {[%emt 0:00:50]} 35.
Rd1 {[%emt 0:01:07]} Bb6 {[%emt 0:00:32]} 36. Nh4 {[%emt 0:01:26]} Qe5 {
[%emt 0:00:21]} 37. Qd3 {[%emt 0:00:23]} Qxh5 {[%emt 0:00:37]} 38. Nf5+ {
[%emt 0:00:09]} Kh8 {[%emt 0:00:21]} 39. Rb1 {[%emt 0:00:35]} Bc5 {[%emt 0:00:
00]} 40. d6 {[%emt 0:00:50]} Qg5 {[%emt 0:00:32]} 41. g3 {[%emt 0:04:04]} h5 {
[%emt 0:07:21]} 42. Kg2 {[%emt 0:01:33]} Qg6 {[%emt 0:02:29]} 43. Rd1 {[%emt 0:
00:00]} Rb8 {[%emt 0:00:56]} 44. d7 {[%emt 0:00:41]} Rd8 {[%emt 0:04:01]} 45.
Re1 {[%emt 0:02:41]} Bb6 {[%emt 0:02:13]} 46. Qd5 {[%emt 0:00:35]} Kh7 {
[%emt 0:02:15]} 47. Rh1 {[%emt 0:04:09]} 1-0

[Event "44th Chess Olympiad Women 2022"]
[Site "Chennai"]
[Date "2022.07.31"]
[Round "3.15"]
[White "Radeva, Viktoria"]
[Black "Gazola, Vanessa Ramos"]
[Result "1-0"]
[WhiteElo "2289"]
[BlackElo "2000"]
[Annotator "RC"]
[PlyCount "81"]
[EventDate "2022.??.??"]
[TimeControl "60"]

1. e4 {[%emt 0:00:03]} e5 {[%emt 0:00:14]} 2. Nf3 {[%emt 0:00:07]} Nf6 {
[%emt 0:00:16]} 3. Nxe5 {[%emt 0:00:22]} d6 {[%emt 0:00:09]} 4. Nf3 {[%emt 0:
00:00]} Nxe4 {[%emt 0:00:09]} 5. d4 {[%emt 0:03:20]} d5 {[%emt 0:00:08]} 6. Bd3
{[%emt 0:02:31]} Bd6 {[%emt 0:00:25]} 7. O-O {[%emt 0:03:33]} O-O {[%emt 0:00:
00]} 8. Nbd2 {[%emt 0:00:50]} Bf5 {[%emt 0:03:26]} 9. Re1 {[%emt 0:05:08]} Re8
{[%emt 0:07:02]} 10. Nf1 {[%emt 0:05:50]} Bg6 {[%emt 0:14:13]} 11. Ne3 {
[%emt 0:08:35]} c6 {[%emt 0:14:50]} 12. c4 {[%emt 0:07:40]} Nf6 {[%emt 0:26:55]
} 13. Bxg6 {[%emt 0:08:29]} hxg6 {[%emt 0:00:09]} 14. cxd5 {[%emt 0:05:41]}
Nxd5 {[%emt 0:10:34]} 15. Nxd5 {[%emt 0:02:49]} Rxe1+ {[%emt 0:00:52]} 16. Nxe1
{[%emt 0:06:27]} cxd5 {[%emt 0:00:39]} 17. Qb3 {[%emt 0:04:38]} b6 {[%emt 0:00:
00]} 18. g3 {[%emt 0:02:48]} Be7 {[%emt 0:02:06]} 19. Bf4 {[%emt 0:05:11]} Nc6
{[%emt 0:01:13]} 20. Nf3 {[%emt 0:04:09]} Na5 {[%emt 0:02:43]} 21. Qd3 {
[%emt 0:01:28]} Nc4 {[%emt 0:03:45]} 22. b3 {[%emt 0:00:22]} Nd6 {[%emt 0:00:
00]} 23. Bxd6 {[%emt 0:01:49]} Qxd6 {[%emt 0:01:27]} 24. Rc1 {[%emt 0:00:22]}
Bf6 {[%emt 0:00:35]} 25. Qb5 {[%emt 0:02:11]} Rd8 {[%emt 0:02:09]} 26. h4 {
[%emt 0:02:33]} Qe6 {[%emt 0:01:41]} 27. Kg2 {[%emt 0:02:11]} Qg4 {[%emt 0:00:
00]} 28. Re1 {[%emt 0:00:54]} Qc8 {[%emt 0:00:37]} 29. a4 {[%emt 0:02:12]} Kf8
{[%emt 0:04:46]} 30. Re3 {[%emt 0:04:27]} Qd7 {[%emt 0:00:00]} 31. Qxd7 {
[%emt 0:05:53]} Rxd7 {[%emt 0:00:00]} 32. Rc3 {[%emt 0:00:05]} Ke7 {[%emt 0:00:
00]} 33. g4 {[%emt 0:00:45]} Kd8 {[%emt 0:00:00]} 34. g5 {[%emt 0:00:11]} Be7 {
[%emt 0:00:00]} 35. Ne5 {[%emt 0:00:10]} Rc7 {[%emt 0:00:00]} 36. Nxf7+ {
[%emt 0:00:15]} Kc8 {[%emt 0:00:00]} 37. Rxc7+ {[%emt 0:00:24]} Kxc7 {[%emt 0:
00:00]} 38. Ne5 {[%emt 0:00:23]} Bb4 {[%emt 0:00:00]} 39. Kf3 {[%emt 0:00:23]}
Kd6 {[%emt 0:00:00]} 40. Nxg6 {[%emt 0:00:25]} Ke6 {[%emt 0:00:00]} 41. Nf4+ {
[%emt 0:30:31]} 1-0

[Event "44th Chess Olympiad Women 2022"]
[Site "Chennai"]
[Date "2022.07.31"]
[Round "3.15"]
[White "Terao, Juliana Sayumi"]
[Black "Krasteva, Beloslava"]
[Result "0-1"]
[WhiteElo "2223"]
[BlackElo "2249"]
[Annotator "RC"]
[PlyCount "82"]
[EventDate "2022.??.??"]
[TimeControl "60"]

1. e4 {[%emt 0:00:03]} c5 {[%emt 0:00:15]} 2. c3 {[%emt 0:00:07]} d5 {[%emt 0:
00:00]} 3. exd5 {[%emt 0:00:07]} Qxd5 {[%emt 0:00:06]} 4. d4 {[%emt 0:00:18]}
Nf6 {[%emt 0:00:30]} 5. Nf3 {[%emt 0:00:34]} e6 {[%emt 0:00:13]} 6. Na3 {
[%emt 0:02:00]} Nc6 {[%emt 0:00:35]} 7. Be2 {[%emt 0:02:38]} Qd8 {[%emt 0:00:
00]} 8. Nc2 {[%emt 0:08:47]} b6 {[%emt 0:03:28]} 9. O-O {[%emt 0:03:35]} Bb7 {
[%emt 0:00:56]} 10. Bf4 {[%emt 0:03:31]} Be7 {[%emt 0:03:55]} 11. Re1 {[%emt 0:
00:00]} O-O {[%emt 0:00:46]} 12. a3 {[%emt 0:03:53]} Rc8 {[%emt 0:05:57]} 13.
dxc5 {[%emt 0:28:16]} Bxc5 {[%emt 0:02:49]} 14. b4 {[%emt 0:00:32]} Nd5 {
[%emt 0:09:57]} 15. Bd2 {[%emt 0:00:13]} Bd6 {[%emt 0:01:10]} 16. c4 {[%emt 0:
00:00]} Nf4 {[%emt 0:01:37]} 17. Bxf4 {[%emt 0:06:35]} Bxf4 {[%emt 0:00:09]}
18. Qxd8 {[%emt 0:00:40]} Rfxd8 {[%emt 0:00:30]} 19. Rad1 {[%emt 0:00:32]} Kf8
{[%emt 0:05:12]} 20. g3 {[%emt 0:02:12]} Bb8 {[%emt 0:01:59]} 21. Kf1 {[%emt 0:
00:00]} Rxd1 {[%emt 0:01:49]} 22. Rxd1 {[%emt 0:00:08]} Ke7 {[%emt 0:00:48]}
23. Ke1 {[%emt 0:04:11]} Ne5 {[%emt 0:02:38]} 24. Nxe5 {[%emt 0:06:52]} Bxe5 {
[%emt 0:00:07]} 25. Ne3 {[%emt 0:01:53]} a5 {[%emt 0:07:52]} 26. bxa5 {[%emt 0:
00:00]} bxa5 {[%emt 0:00:05]} 27. Rb1 {[%emt 0:00:41]} Be4 {[%emt 0:04:13]} 28.
Rb5 {[%emt 0:00:35]} Bc3+ {[%emt 0:01:04]} 29. Kf1 {[%emt 0:00:06]} Bc6 {
[%emt 0:01:16]} 30. Rb3 {[%emt 0:01:00]} Bd4 {[%emt 0:05:43]} 31. Nc2 {[%emt 0:
00:00]} Bc5 {[%emt 0:02:05]} 32. Ke1 {[%emt 0:01:50]} e5 {[%emt 0:11:37]} 33.
Ne3 {[%emt 0:00:24]} a4 {[%emt 0:01:29]} 34. Rd3 {[%emt 0:00:40]} Rb8 {[%emt 0:
00:00]} 35. Bd1 {[%emt 0:00:09]} Rb1 {[%emt 0:07:36]} 36. Nd5+ {[%emt 0:00:37]}
Kf8 {[%emt 0:01:48]} 37. Nc3 {[%emt 0:00:55]} Ra1 {[%emt 0:01:31]} 38. Nb5 {
[%emt 0:00:08]} Be4 {[%emt 0:02:17]} 39. Rd2 {[%emt 0:00:57]} Bf3 {[%emt 0:00:
00]} 40. Rd3 {[%emt 0:00:26]} e4 {[%emt 0:01:30]} 41. Rd2 {[%emt 0:06:38]} Bb6
{[%emt 0:02:31]} 0-1